Department Family,Entity,Date,Expense Type,Expense Area,Supplier,Transaction Number,AP Amount,VAT Registration Number,Purchase Invoice Number
Department of Health,Bridgewater Community Healthcare NHS Foundation Trust,11/30/2015,Vehicle Insurance,Corporate Finance - ALW,GMG RISK STRATEGIES LTD,16313111,"25,042.50",,3300
Department of Health,Bridgewater Community Healthcare NHS Foundation Trust,11/30/2015,Hcare Srv Rec NHS Trust,Midwifery Halton,ST HELENS & KNOWSLEY HOSPITALS NHS TRUST,16329567,"57,409.00",654943996,16752800
Department of Health,Bridgewater Community Healthcare NHS Foundation Trust,11/30/2015,SrvcsRecd-FoundationTrust,HM Prison Healthcare,GREATER MANCHESTER WEST MENTAL HEALTH NHS FOUNDATION TRUST,16329897,"86,425.59",654929594,20915
Department of Health,Bridgewater Community Healthcare NHS Foundation Trust,11/30/2015,SrvcsRecd-FoundationTrust,HM Prison Healthcare,GREATER MANCHESTER WEST MENTAL HEALTH NHS FOUNDATION TRUST,16329995,"82,975.33",654929594,20004
Department of Health,Bridgewater Community Healthcare NHS Foundation Trust,11/30/2015,Rent,89 Spencer House,SAVILLS (UK) LTD,16330060,"38,690.40",,201500000613
Department of Health,Bridgewater Community Healthcare NHS Foundation Trust,11/30/2015,Rent,Peel House,PEELHOUSE MEDICAL PLAZA,16332272,"41,707.35",,PEELHOUSERENT0015
Department of Health,Bridgewater Community Healthcare NHS Foundation Trust,11/30/2015,Vehicle Insurance,Corporate Finance - ALW,GMG RISK STRATEGIES LTD,16332276,"114,244.68",,3301
Department of Health,Bridgewater Community Healthcare NHS Foundation Trust,11/30/2015,OOH Comms Equip/GP Rotas,General Medical Services,DR JK AGARWALA,16342852,"29,789.27",,OCT15 2923
Department of Health,Bridgewater Community Healthcare NHS Foundation Trust,11/30/2015,Med & Surg Maint Contract,General Management,MEDICAL PHYSICS INTERNATIONAL LTD,16346954,"26,895.42",644042954,25587
Department of Health,Bridgewater Community Healthcare NHS Foundation Trust,11/30/2015,External Consultancy Fees,Corporate Finance - ALW,LIAISON VAT CONSULTANCY LTD,16415562,"61,231.90",925449015,69692
Department of Health,Bridgewater Community Healthcare NHS Foundation Trust,11/30/2015,SrvcsRecd-FoundationTrust,Midwifery Halton,WARRINGTON & HALTON HOSPITALS NHS FOUNDATION TRUST,16506272,"32,500.00",654404741,15355326
Department of Health,Bridgewater Community Healthcare NHS Foundation Trust,11/30/2015,Independent Sector,Walk In Centre Halton,NHS HALTON CCG,16506305,"131,102.16",,7012200303
Department of Health,Bridgewater Community Healthcare NHS Foundation Trust,11/30/2015,Services Received - NHSTs,Walk In Centre St Helens,ST HELENS & KNOWSLEY HOSPITALS NHS TRUST,16584697,"26,414.25",654943996,16757646
Department of Health,Bridgewater Community Healthcare NHS Foundation Trust,11/30/2015,Services Received - CSU's,Computing - ALW,NHS CHESHIRE AND MERSEYSIDE CSU,16584728,"28,679.00",,7310306209
Department of Health,Bridgewater Community Healthcare NHS Foundation Trust,11/30/2015,SrvcsRecd-FoundationTrust,HM Prison Healthcare,GREATER MANCHESTER WEST MENTAL HEALTH NHS FOUNDATION TRUST,16644791,"70,686.16",654929594,21129
Department of Health,Bridgewater Community Healthcare NHS Foundation Trust,11/30/2015,Lease Rents,Bath Street,COMMUNITY HEALTH PARTNERSHIPS,16645983,"43,289.93",782562113,50396717
Department of Health,Bridgewater Community Healthcare NHS Foundation Trust,11/30/2015,Lease Rents,Child Development Centre Orford,COMMUNITY HEALTH PARTNERSHIPS,16645994,"39,331.63",782562113,50396722
Department of Health,Bridgewater Community Healthcare NHS Foundation Trust,11/30/2015,Lease Rents,Claire House,COMMUNITY HEALTH PARTNERSHIPS,16646003,"28,233.76",782562113,50396727
Department of Health,Bridgewater Community Healthcare NHS Foundation Trust,11/30/2015,Lease Rents,Pemberton Health Centre,COMMUNITY HEALTH PARTNERSHIPS,16646009,"27,608.41",782562113,50396730
Department of Health,Bridgewater Community Healthcare NHS Foundation Trust,11/30/2015,Lease Rents,Garswood HC,COMMUNITY HEALTH PARTNERSHIPS,16646012,"35,224.45",782562113,50396732
Department of Health,Bridgewater Community Healthcare NHS Foundation Trust,11/30/2015,Lease Rents,Chandler House,COMMUNITY HEALTH PARTNERSHIPS,16646015,"36,962.02",782562113,50396734
Department of Health,Bridgewater Community Healthcare NHS Foundation Trust,11/30/2015,Lease Rents,Bath Street,COMMUNITY HEALTH PARTNERSHIPS,16646021,"43,289.93",782562113,50396736
Department of Health,Bridgewater Community Healthcare NHS Foundation Trust,11/30/2015,Lease Rents,Child Development Centre Orford,COMMUNITY HEALTH PARTNERSHIPS,16646030,"39,331.63",782562113,50396740
Department of Health,Bridgewater Community Healthcare NHS Foundation Trust,11/30/2015,Lease Rents,Claire House,COMMUNITY HEALTH PARTNERSHIPS,16646039,"28,233.76",782562113,50396748
Department of Health,Bridgewater Community Healthcare NHS Foundation Trust,11/30/2015,Lease Rents,Pemberton Health Centre,COMMUNITY HEALTH PARTNERSHIPS,16646046,"27,608.41",782562113,50396754
Department of Health,Bridgewater Community Healthcare NHS Foundation Trust,11/30/2015,Lease Rents,Widnes HCRC,COMMUNITY HEALTH PARTNERSHIPS,16646049,"35,224.45",782562113,50396758
Department of Health,Bridgewater Community Healthcare NHS Foundation Trust,11/30/2015,Lease Rents,Chandler House,COMMUNITY HEALTH PARTNERSHIPS,16646052,"36,962.02",782562113,50396759
Department of Health,Bridgewater Community Healthcare NHS Foundation Trust,11/30/2015,Contr Other External,Finance,NHS ST HELENS CCG,16661492,"64,833.00",,7013300046
Department of Health,Bridgewater Community Healthcare NHS Foundation Trust,11/30/2015,Contr Other External,Finance,NHS ST HELENS CCG,16661588,"302,931.00",,7013300141
Department of Health,Bridgewater Community Healthcare NHS Foundation Trust,11/30/2015,Audit Fees: Internal,Corporate Finance - ALW,ROYAL LIVERPOOL&BROADGREEN UNIVERSITY HOSPITALS NHS TRUST (THE),16662268,"33,837.50",654966000,8610041276
Department of Health,Bridgewater Community Healthcare NHS Foundation Trust,11/30/2015,Lease Rents,Boston House,COMMUNITY HEALTH PARTNERSHIPS,16662395,"55,499.36",782562113,50396715
Department of Health,Bridgewater Community Healthcare NHS Foundation Trust,11/30/2015,Lease Rents,Leigh Infirmary,COMMUNITY HEALTH PARTNERSHIPS,16662398,"80,250.04",782562113,50396725
Department of Health,Bridgewater Community Healthcare NHS Foundation Trust,11/30/2015,Lease Rents,Newton Community Hospital,COMMUNITY HEALTH PARTNERSHIPS,16662401,"93,618.55",782562113,50396728
Department of Health,Bridgewater Community Healthcare NHS Foundation Trust,11/30/2015,Lease Rents,Platt Bridge Community HC,COMMUNITY HEALTH PARTNERSHIPS,16662402,"60,466.44",782562113,50396731
Department of Health,Bridgewater Community Healthcare NHS Foundation Trust,11/30/2015,Lease Rents,Boston House,COMMUNITY HEALTH PARTNERSHIPS,16662405,"55,499.36",782562113,50396742
Department of Health,Bridgewater Community Healthcare NHS Foundation Trust,11/30/2015,Lease Rents,Leigh Infirmary,COMMUNITY HEALTH PARTNERSHIPS,16662408,"80,250.04",782562113,50396745
Department of Health,Bridgewater Community Healthcare NHS Foundation Trust,11/30/2015,Lease Rents,Newton Community Hospital,COMMUNITY HEALTH PARTNERSHIPS,16662411,"93,618.55",782562113,50396750
Department of Health,Bridgewater Community Healthcare NHS Foundation Trust,11/30/2015,Lease Rents,Platt Bridge Community HC,COMMUNITY HEALTH PARTNERSHIPS,16662414,"60,466.44",782562113,50396757
